Cogmind - Beta 15 @@@ ROGUE MODE // 2025.07.12 @ 02:00:26 Player: KN-OKO Result: Escaped! Performance ------------- Evolutions (9) 4500 Regions Visited (24) 4800 Robots Destroyed (433) 2165 Value Destroyed (22639) 22639 Prototype IDs (50) 1000 Alien Tech Used (3) 600 Bonus (23572) 23572 TOTAL SCORE: 59276 Bonus ------- Triggered High Security 500 High Alert Combat Kills 4027 Follower Combat Kills 1768 Met Zhirov 300 Met Warlord at Base 500 MAIN.C Attacked Warlord 500 Warlord Defense Kills 898 Built Enhanced Grunts 300 A7 Reached Mainframe 300 Met R17 at Cetus 500 Met R17 at Research 2000 Met Warlord at Research 2000 Destroyed MAIN.C Guards 500 Met MAIN.C 5000 Hacked MAIN.C 300 Met Warlord at Command 2000 Win 3000 Friendly Fire -821 Cogmind --------- Core Integrity 945/1600 Matter 58/300 Energy 186/190 System Corruption 19% Temperature Cool (0) Movement Walking (38) Location To Epsilon Eridani Parts ------- > --- POWER (3) -------- Light Quantum Reactor > --- PROPULSION (6) --- Biometal-Gravjet Exoskeleton > --- UTILITY (12) ----- Armored Scrap Engine Enhanced Optical Array Graphene Brace System Shield > --- WEAPON (4) ------- Prc. KE Graviton Construct/C > --- INVENTORY (5) ---- Advanced Energy Well (500) Advanced Kinecellerator Advanced Transmission Jammer Nanosword Dirty Bomb Trap Peak State ------------ > --- POWER ------------ Quantum Reactor Multi-Quantum Reactor > --- PROPULSION ------- Biometal-Gravjet Exoskeleton > --- UTILITY ---------- Armored Scrap Engine Large Storage Unit Advanced Sensor Array Experimental Signal Interpreter Experimental Targeting Computer Advanced Transmission Jammer Concept Core Shell Centrium Light Armor Plating Phase Redirector > --- WEAPON ----------- Prc. KE Graviton Construct/C Experimental Terror Saw > --- INVENTORY -------- Advanced Energy Well Matter Compressor Stasis Canceller Concept Core Shell Centrium Light Armor Plating Advanced Thermal Shield Transdimensional Reconstructor Core Reset Matrix Subatomic Replicator Terrabomb Micro-nuke Launcher Dirty Datajack Advanced Datajack Dirty Bomb Trap Dirty Bomb Trap [Rating: 201] Favorites ----------- Power Constructs Engine Ion Engine Reactor Constructs Propulsion Constructs Treads Light Treads Leg Constructs Wheel Wheel Utility Armored Scrap Engine Device Armored Scrap Engine Storage Large Storage Unit Processor Enhanced Optical Array Hackware System Shield Protection Centrium Medium Armor Plating Artifact Phase Redirector Weapon Constructs Energy Gun Constructs Energy Cannon Proton Cannon Ballistic Gun Heavy Assault Rifle Ballistic Cannon Constructs Launcher Micro-nuke Launcher Special Weapon Remote Datajack Slashing Weapon Axe Piercing Weapon Makeshift Spear Special Melee Weapon Advanced Datajack Build | -11 -10 -10 -8 -8 -8 -6 -6 -6 -5 -5 -5 -5 -4 -4 -4 -4 -4 -3 -3 -2 -2 -2 -1 -1 ------- Run | Yrd Mat Sub Mat Sto Rec Fac Ext Cet Fac Upp Upp War Pro Fac Upp Upp Zhi Pro Res Res Qua Frg Acc Com Slots Evolved 18 | . . . 4 . . 4 . . 2 . . . . 2 . . . . 2 2 . . 2 . Power 2 | . . . . . . . . . 1 . . . . . . . . . . 1 . . . . Propulsion 4 | . . . 2 . . 1 . . . . . . . 1 . . . . . . . . . . Utility 10 | . . . . . . 3 . . 1 . . . . 1 . . . . 2 1 . . 2 . Weapon 2 | . . . 2 . . . . . . . . . . . . . . . . . . . . . Parts Attached 189 | 7 4 11 19 8 7 16 18 3 13 5 1 2 . 3 3 2 2 2 7 9 8 5 13 21 Power 13 | 1 . 1 1 1 . 2 4 . . . . . . . . . . . . . 1 . 1 1 Engine 10 | 1 . 1 1 1 . 2 4 . . . . . . . . . . . . . . . . . Core . | . . . . . . . . . . . . . . . . . . . . . . . . . Reactor 3 | . . . . . . . . . . . . . . . . . . . . . 1 . 1 1 Propulsion 30 | 2 . 3 8 4 3 4 4 . 2 . . . . . . . . . . . . . . . Treads 11 | 2 . 1 5 1 2 . . . . . . . . . . . . . . . . . . . Leg 12 | . . 1 . 2 . 3 4 . 2 . . . . . . . . . . . . . . . Wheel 7 | . . 1 3 1 1 1 . . . . . . . . . . . . . . . . . . Hover . | . . . . . . . . . . . . . . . . . . . . . . . . . Flight . | . . . . . . . . . . . . . . . . . . . . . . . . . Utility 105 | 2 2 3 . . 3 6 6 3 10 5 1 1 . 3 1 1 2 1 7 8 7 4 11 18 Device 55 | 1 1 1 . . 2 3 4 1 5 5 . . . 2 1 1 1 . 3 3 4 1 7 9 Storage 9 | 1 1 1 . . 1 . . 1 . . 1 . . . . . . . . 1 . . . 2 Processor 10 | . . . . . . . . . 1 . . . . . . . . . 3 2 1 1 . 2 Hackware 5 | . . . . . . . . . 1 . . . . 1 . . . . . . . . 2 1 Protection 25 | . . 1 . . . 3 2 1 3 . . 1 . . . . 1 1 1 2 1 2 2 4 Artifact 1 | . . . . . . . . . . . . . . . . . . . . . 1 . . . Weapon 41 | 2 2 4 10 3 1 4 4 . 1 . . 1 . . 2 1 . 1 . 1 . 1 1 2 Energy Gun 5 | . 2 1 2 . . . . . . . . . . . . . . . . . . . . . Energy Cannon 2 | . . . . . . . 1 . 1 . . . . . . . . . . . . . . . Ballistic Gun 16 | 2 . 3 6 2 . 1 2 . . . . . . . . . . . . . . . . . Ballistic Cannon 1 | . . . . . . 1 . . . . . . . . . . . . . . . . . . Launcher 7 | . . . . 1 . 2 1 . . . . . . . 1 . . . . 1 . . . 1 Special Weapon 2 | . . . . . 1 . . . . . . 1 . . . . . . . . . . . . Impact Weapon . | . . . . . . . . . . . . . . . . . . . . . . . . . Slashing Weapon 5 | . . . 2 . . . . . . . . . . . . 1 . . . . . 1 . 1 Piercing Weapon 1 | . . . . . . . . . . . . . . . 1 . . . . . . . . . Special Melee Weapon 2 | . . . . . . . . . . . . . . . . . . 1 . . . . 1 . Unidentified Prototypes 26 | . . . . . 1 . . 2 3 . . 1 . . . . 3 . 1 3 2 4 1 5 Parts Lost 74 | . . 6 . 1 1 6 14 . 3 1 1 . . . 2 1 . 4 1 4 . 4 5 20 Power 9 | . . 1 . . . 1 1 . . . . . . . . . . 2 . . . . 1 3 Propulsion 17 | . . 3 . 1 . 2 7 . . . . . . . . . . . . . . . . 4 Utility 31 | . . 1 . . . 1 2 . 2 . . . . . 1 . . 2 1 4 . 4 2 11 Weapon 17 | . . 1 . . 1 2 4 . 1 1 1 . . . 1 1 . . . . . . 2 2 Highest Loss Streak 8 | . . 3 . 1 1 2 5 . 2 1 1 . . . 2 1 . 2 1 2 . 2 2 8 To Critical Strikes . | . . . . . . . . . . . . . . . . . . . . . . . . . Average Backups 11 | 4 11 4 8 9 9 14 14 16 14 16 13 12 13 11 11 11 12 10 10 10 11 12 11 12 Power . | . 1 . . . . 1 . 1 1 2 1 1 1 1 1 1 1 . . . . . . . Propulsion 1 | 3 3 . 2 3 3 4 2 1 . 1 . . . . . . . . . . . . . . Utility 5 | . . . 1 1 1 5 7 8 9 9 8 8 8 6 6 6 7 5 5 5 5 5 4 6 Weapon 2 | . 6 3 4 5 4 2 4 4 2 2 2 1 2 2 1 1 2 2 2 1 1 1 1 1 Tool/Special . | . . . . . . . . . . . . . . . . . . . . . . . . . Unused Backups 39 | . 3 11 5 2 5 2 . 1 . . 1 . . 1 . . . 1 . . 1 . . 6 Power 2 | . . . . . 1 . . . . . . . . . . . . 1 . . . . . . Propulsion 9 | . 2 2 1 2 1 . . . . . 1 . . . . . . . . . . . . . Utility 10 | . . . 2 . 1 2 . 1 . . . . . 1 . . . . . . 1 . . 2 Weapon 15 | . 1 9 2 . 2 . . . . . . . . . . . . . . . . . . 1 Tool/Special 3 | . . . . . . . . . . . . . . . . . . . . . . . . 3 Average Slot Usage (%) 65 | . 99 86 87 89 93 66 63 45 57 60 57 57 57 56 54 50 51 46 50 51 56 55 55 57 Engine 3 | . 14 14 9 9 9 4 5 6 . . . . . . . . . . . . . . . . Core 1 | . . . . . . 1 . . 4 5 5 5 4 1 5 5 4 . . . . . . . Reactor 2 | . . . . . . . . . . . . . . 3 . . . 4 4 4 7 8 7 7 Treads 4 | . 27 15 17 15 9 1 . . . . . . . . 2 5 5 3 1 . . . . 2 Leg 4 | . . 10 . 6 9 3 9 6 3 . . . 4 2 . . . 1 2 3 4 4 1 1 Wheel 2 | . . 2 16 12 18 6 2 . . . . . . . . . . . . . . . . . Hover 1 | . . . . . . 4 3 . 1 5 5 5 . . . . . . . . . . 2 . Device 10 | . 13 1 . . 4 7 12 6 11 12 10 5 8 12 17 21 21 17 20 15 15 16 16 13 Storage 5 | . 14 4 9 9 7 6 6 6 5 5 5 5 5 5 5 5 5 5 4 4 4 4 4 4 Processor 2 | . . . . . . . . . 1 5 5 5 5 5 2 . . . . 5 8 7 4 4 Hackware 1 | . . . . . . . . . 3 . . . . 2 . . . . . . . . 5 7 Protection 5 | . . 9 . . . 5 5 5 4 2 5 10 7 5 5 5 4 4 5 7 8 6 8 8 Energy Gun 2 | . 24 8 4 . . 5 . 4 2 . . . . . . . . . 1 . . . . . Energy Cannon 2 | . . . . . . . 6 3 4 9 5 5 5 2 5 1 . 3 . . 2 3 . . Ballistic Gun 7 | . 3 19 28 32 30 8 3 . 2 5 4 4 4 4 . . . . 1 2 . . . . Ballistic Cannon 2 | . . . . . . . 2 4 4 3 4 5 5 7 7 5 5 1 4 4 1 . 4 4 Slashing Weapon 1 | . . . 2 2 4 5 2 . . . . . . . . 2 5 2 . . . 1 1 1 Peak Build Rating 201 | 9 12 28 40 42 42 74 78 85 118 116 112 112 118 128 131 130 126 126 145 165 181 201 200 196 Average Rating 96 | 5 11 12 36 39 31 63 70 80 109 112 107 104 116 125 125 123 124 112 129 153 174 182 186 176 On Entrance 95 | . 9 12 28 39 41 39 74 65 83 107 111 98 104 118 126 126 124 126 102 143 158 181 181 192 Naked Turns . | . . . . . . . . . . . . . . . . . . . . . . . . . Heaviest Build 155 | 13 33 52 62 62 62 84 83 92 109 101 91 81 84 78 70 77 65 79 109 155 121 118 130 152 Greatest Support 235 | 40 40 40 32 32 26 60 74 68 88 63 63 63 125 83 178 178 227 227 113 161 161 149 204 235 Greatest Overweight (x) 19 | . . 2 6 3 2 4 2 2 2 1 1 1 1 . . . . 19 . 1 . 1 1 1 Average Overweight (x) . | . . 1 1 2 1 2 1 1 . 1 1 1 . . . . . . . . . . . . Largest Inventory Capacity 25 | 8 15 25 25 25 25 20 20 20 20 20 20 15 15 15 15 15 15 15 15 15 15 15 15 25 Average Capacity 16 | 7 13 10 25 25 20 20 20 20 20 20 15 15 15 15 15 15 15 15 15 15 15 15 15 15 Most Carried 25 | 6 15 16 25 25 25 20 20 20 20 20 20 15 15 15 15 14 15 15 15 15 15 15 15 15 Average Carried 14 | 4 11 6 23 24 15 16 16 17 16 19 15 14 15 13 13 13 14 14 14 12 13 14 13 14 Final Capacity 25 | 8 15 25 25 25 5 20 20 20 20 20 15 15 15 15 15 15 15 15 15 15 15 15 15 5 Final Carried 25 | 6 15 16 24 25 5 19 15 18 18 20 15 15 15 14 12 14 15 14 15 11 15 13 15 5 Scrap Engine Consumption 332 | . . . . . 2 38 45 13 46 7 6 17 4 14 5 2 2 20 25 39 7 13 14 13 Constructs Created 19 | . . . . . . 3 2 1 4 1 . 2 1 . . . . 1 2 1 . 1 . . Constructs Modified 122 | . . . . . . 9 12 3 19 2 4 3 4 7 2 1 2 8 9 17 5 3 7 5 Class Distribution -------------------- 41% | Construct 15% | Mutant 7% | Tank 7% | Scavenger-Gunner 7% | Hacker-Construct 6% | Commander-Construct 4% | Scavenger-Construct Dominant Class ---------------- Mutant | -10/Materials Mutant | -10/Subcaves Scavenger-Gunner | -8/Materials Scavenger-Gunner | -8/Storage Commander-Gunner | -8/Recycling Mutant | -6/Factory Tank | -6/Extension Construct | -6/Cetus Construct | -5/Factory Construct | -5/Upper Caves Construct | -5/Upper Caves Construct | -5/Warlord Commander-Construct | -4/Proximity Caves Construct | -4/Factory Construct | -4/Upper Caves Construct | -4/Upper Caves Construct | -4/Zhirov Construct | -3/Proximity Caves Construct | -3/Research Construct | -2/Research Scavenger-Construct | -2/Quarantine Construct | -2/Protoforge Hacker-Construct | -1/Access Hacker-Construct | -1/Command Resources | -11 -10 -10 -8 -8 -8 -6 -6 -6 -5 -5 -5 -5 -4 -4 -4 -4 -4 -3 -3 -2 -2 -2 -1 -1 ----------- Run | Yrd Mat Sub Mat Sto Rec Fac Ext Cet Fac Upp Upp War Pro Fac Upp Upp Zhi Pro Res Res Qua Frg Acc Com Matter Collected 15109 | 290 69 288 633 294 476 898 1057 108 853 195 66 229 23 351 222 284 50 183 162 1729 1486 1332 1547 2284 Remotely . | . . . . . . . . . . . . . . . . . . . . . . . . . Salvage Created 24752 | 96 192 288 1056 341 415 1422 1979 . 2043 450 206 463 70 1326 766 289 111 1384 788 2669 1155 1283 2339 3621 Parts 1069 | 11 18 8 61 17 14 71 80 . 93 17 8 21 2 59 17 19 4 48 31 66 57 78 126 143 Haulers Intercepted 13 | . 2 . 1 . . . . . . . . . . 3 . . . . 2 1 . . 4 . Recyclers Shooed 13 | . 2 . . . . 3 2 . 3 . . . . 2 . . . . . . . . . 1 Parts Field Recycled . | . . . . . . . . . . . . . . . . . . . . . . . . . Retrieved Matter . | . . . . . . . . . . . . . . . . . . . . . . . . . Parts Self-Destructed 67 | . . 5 . . . . . . . 12 6 . 7 . 3 15 3 16 . . . . . . Prevented 35 | . . 1 . . . . . . . 4 1 . . . 10 . . 19 . . . . . . Kills | -11 -10 -10 -8 -8 -8 -6 -6 -6 -5 -5 -5 -5 -4 -4 -4 -4 -4 -3 -3 -2 -2 -2 -1 -1 ------- Run | Yrd Mat Sub Mat Sto Rec Fac Ext Cet Fac Upp Upp War Pro Fac Upp Upp Zhi Pro Res Res Qua Frg Acc Com Combat Hostiles Destroyed 352 | . 7 10 18 7 5 22 26 . 24 10 4 10 1 11 11 8 . 16 9 38 13 16 32 54 Melee 3 | . . . 1 . . 1 1 . . . . . . . . . . . . . . . . . Guns 79 | . 7 10 17 5 5 12 3 . 9 3 1 . . 2 . . . . . 4 . 1 . . Cannons 180 | . . . . . . 1 5 . 11 6 3 2 1 9 5 3 . 10 9 13 13 15 23 51 AOE 69 | . . . . 2 . 7 13 . 2 . . 8 . . 2 5 . 4 . 14 . . 9 3 Classes Destroyed 26 | 1 4 2 5 1 1 1 1 . 1 . 1 1 . 1 . . . 1 . 3 1 . . 1 Worker 11 | . . . . 1 . 1 . . 1 . . . . 1 . . . . . . 1 . 5 1 Builder 3 | . . . . . . . . . . . . . . 1 . . . . . . . . 2 . Tunneler 6 | 4 1 . . . . . 1 . . . . . . . . . . . . . . . . . Hauler 13 | . 2 . 1 . . . . . . . . . . 3 . . . . 2 1 . . 4 . Recycler 19 | . . . 2 1 1 4 5 . 3 . . . . 1 . . . . . . 1 . . 1 Minesweeper 1 | . . . . . . . . . . . . . . . . . . 1 . . . . . . Mechanic 3 | . . . 1 . . . . . . . . . . . . . . 1 . 1 . . . . Operator 2 | . . . 1 . . . . . . . . . . 1 . . . . . . . . . . Watcher 20 | . 3 . 2 . . 1 2 . 3 . . . . 1 . . . . . . 1 1 4 2 Swarmer 81 | . 5 . 4 . . 4 7 . . 5 3 5 . . . 6 . 1 3 2 . . 16 20 Grunt 95 | . 2 . 5 4 . 9 6 . 7 3 . 3 . 3 6 . . 7 3 19 2 . 3 13 Brawler 7 | . . . . . . . . . 1 1 . . . . 1 . . 1 . 2 . . . 1 Duelist 12 | . . . 1 1 . . . . . . . . . . 1 . . 2 . 1 1 . . 5 Protector 2 | . . . . . 1 . . . . . . . . 1 . . . . . . . . . . Sentry 49 | . . 1 6 2 2 2 5 . 5 . 1 . . 3 . 1 . 2 2 . 2 7 4 4 Demolisher 2 | . . . . . . . . . . . . . . . . . . . . 2 . . . . Specialist 2 | . . . . . . . . . . . . 1 . 1 . . . . . . . . . . Hunter 30 | . . . 2 . . . 6 . 5 1 . 1 1 . . . . 2 . 6 2 . 2 2 Programmer 49 | . . . . . . 7 . . 6 . . . . 4 2 . . . 1 . 5 9 7 8 Heavy 1 | . . . . . . . . . . . . . . . . . . . . . . . . 1 Behemoth 6 | . . . . . . . 2 . . . . . . . 1 1 . 1 . 1 . . . . Striker 5 | . . . . . . . . . . . . . . . . . . . . 5 . . . . Alpha 7 1 | . . . . . . . . . . . . . . . . . . . . . 1 . . . Subdweller 11 | . . 9 . . 2 . . . . . . . . . . . . . . . . . . . Decomposer 1 | . . . . . . . . . . . . . . . . 1 . . . . . . . . Samaritan 1 | . . . . . . . . . . . 1 . . . . . . . . . . . . . Butcher 1 | . . . . . . . . . . . . 1 . . . . . . . . . . . . Knight 1 | . . . . . . . . . . . . . . . . . . . . 1 . . . . Best Kill Streak 11 | 3 3 2 5 5 2 7 10 . 4 5 3 9 1 5 4 4 . 8 4 7 4 3 11 8 Combat Bots Only 9 | . 3 2 4 5 1 6 8 . 4 5 3 9 1 3 4 4 . 8 4 6 3 3 6 8 Max Kills in Single Turn 5 | 1 1 1 2 2 1 5 4 . 1 1 2 3 1 2 2 3 . 2 1 4 1 1 5 2 Gunslinging 1 | . . . . 1 . . . . . . . . . . . . . . . . . . . . Exploded 5 | . . . . 1 . 5 4 . 1 . . 3 . . 2 3 . 2 . 3 . . 5 2 Melee 1 | . . . 1 . . 1 1 . . . . . . . . . . . . . . . . . Uniques/NPCs Destroyed . | . . . . . . . . . . . . . . . . . . . . . . . . . Combat | -11 -10 -10 -8 -8 -8 -6 -6 -6 -5 -5 -5 -5 -4 -4 -4 -4 -4 -3 -3 -2 -2 -2 -1 -1 -------- Run | Yrd Mat Sub Mat Sto Rec Fac Ext Cet Fac Upp Upp War Pro Fac Upp Upp Zhi Pro Res Res Qua Frg Acc Com Hostile Shots Fired 2502 | . 35 70 52 22 25 189 366 12 174 62 19 35 20 85 89 54 . 145 37 175 92 131 98 515 Missed 782 | . 10 14 8 7 3 58 109 3 40 15 7 24 5 49 43 22 . 55 9 55 24 36 32 154 Hits 1720 | . 25 56 44 15 22 131 257 9 134 47 12 11 15 36 46 32 . 90 28 120 68 95 66 361 Melee 27 | . . . 3 5 . . . . . . . . . . 2 . . 9 . 4 . . . 4 Projectile 1693 | . 25 56 41 10 22 131 257 9 134 47 12 11 15 36 44 32 . 81 28 116 68 95 66 357 AOE 11 | . . 1 . . . . . . 1 . . . . 1 . . . . . 5 . . . 3 Critical Strikes 90 | . . 1 4 5 1 4 7 2 3 2 . . 1 . 2 1 . 8 2 10 7 7 2 21 Actively Blocked 22 | . . . . . . . . . . . . . . . . . . . . . . . 1 21 Part Disruptions 1 | . . . . . . 1 . . . . . . . . . . . . . . . . . . Damage Taken 35959 | . 250 1216 681 328 400 1864 3592 253 2998 786 224 88 134 627 1071 577 . 2285 661 3050 1376 2904 1551 9043 Core 3524 | . 52 167 90 13 31 123 536 32 497 61 . 27 26 26 173 30 . 229 67 250 122 317 16 639 Absorbed by Shields 2616 | . . . . . . . . 36 . . . 85 127 83 . . . . . 43 34 . . 2208 Reduced by Siege Mode 11 | . . . . . . . . . . . . . . . 11 . . . . . . . . . Redirected to Core 162 | . . . . . . . . . . . . . . . . . . . . . . 162 . . Redirected to Shielding 261 | . . . . . . . . . . . . . . . . . . . . . . 53 112 96 Ignored by Resistances 492 | . . . . . . . . . . . . . . . . . . . . 184 86 160 62 . Regen/Repaired (Parts) 11783 | . 60 . 116 . . 214 811 147 905 253 485 104 140 210 314 118 353 1256 301 858 989 855 1578 1716 Core Remaining (%) 56 | 100 . 12 . . 75 . . 18 . . . . 38 . . . . 60 94 . . 52 . 59 Volleys Fired 1432 | 10 27 99 43 17 40 58 92 9 105 19 8 39 5 53 41 26 . 62 51 115 75 97 114 227 Largest 4 | 2 2 2 4 4 4 3 3 2 3 4 3 2 2 3 2 2 . 1 3 2 1 2 1 1 Hottest 391 | 40 130 130 153 97 97 113 201 234 350 174 143 83 83 195 116 199 . 203 391 329 109 121 67 67 Shots Fired 2139 | 20 54 135 166 51 94 121 158 12 205 59 24 43 7 91 60 27 . 62 63 172 74 104 112 225 Gun 847 | 20 54 135 166 47 72 100 48 3 92 14 8 . . 11 . . . . 13 54 . 10 . . Cannon 1170 | . . . . . . 16 101 9 113 45 16 21 7 80 54 23 . 50 50 87 74 94 110 220 Launcher 84 | . . . . 4 . 5 9 . . . . 6 . . 6 4 . 12 . 31 . . 2 5 Special 38 | . . . . . 22 . . . . . . 16 . . . . . . . . . . . . Kinetic 1181 | 20 . 91 141 47 72 86 66 . 125 30 13 16 5 74 38 22 . 30 59 92 . 34 110 10 Thermal 669 | . 54 40 25 . . 23 53 12 53 . . . . . . . . 20 4 31 74 70 . 210 Explosive 31 | . . . . 4 . 3 2 . . . . . . . . 4 . . . 11 . . 2 5 Electromagnetic 196 | . . 4 . . . 9 37 . 27 29 11 6 . . 22 1 . 12 . 38 . . . . Entropic 24 | . . . . . . . . . . . . 5 2 17 . . . . . . . . . . Robot Hit Streak 66 | 7 9 26 15 6 17 13 9 5 12 7 3 15 5 8 5 4 . 7 24 29 13 10 33 66 Robot Miss Streak 10 | 1 9 3 6 3 2 5 10 1 8 4 2 6 1 3 3 7 . 4 4 5 1 4 2 2 Penetration Max 2 | . . . 1 . . . 1 . 1 1 . 1 . 1 2 . . . . 1 . . 1 . Secondary Targets 9 | . 1 3 2 1 . . . . . . . . . . . . . . . 2 . . . . Max Gunslinging Chain 1 | . 1 1 1 1 . . . . . . . . . . . . . . . 1 . . . . Shots Hit Robots 1367 | 14 46 62 113 33 73 94 104 9 112 30 13 22 6 50 34 6 2 39 35 96 37 57 78 202 Core Hits 824 | 7 50 52 72 18 11 89 85 3 53 15 8 27 2 26 14 8 1 28 11 77 13 18 53 83 Critical Kills 16 | . . . . 1 . . 1 . 6 1 . . . . . . . . . . . . 2 5 Critical Parts Destroyed 29 | . . . 1 . . . . . 6 . . . . . . . . . . . . . 2 20 Critical Strikes 71 | . . . 1 1 1 1 1 . 12 1 . 2 1 4 4 1 . . . 5 1 1 4 30 Burn 2 | . . . . . . 1 . . . . . . . . . . . . . . 1 . . . Meltdown 2 | . . . . . . . . . 1 1 . . . . . . . . . . . . . . Destroy 48 | . . . 1 1 1 . 1 . 11 . . . . . . . . . . . . . 4 29 Blast 10 | . . . . . . . . . . . . 2 1 . 1 1 . . . 5 . . . . Sever 2 | . . . . . . . . . . . . . . . . . . . . . . 1 . 1 Sunder 7 | . . . . . . . . . . . . . . 4 3 . . . . . . . . . Melee Attacks 91 | . . . 4 7 3 25 8 . . . . . . . . 3 2 4 . . . 3 7 25 Impact . | . . . . . . . . . . . . . . . . . . . . . . . . . Slashing 86 | . . . 4 7 3 25 8 . . . . . . . . 3 2 3 . . . 3 4 24 Piercing 3 | . . . . . . . . . . . . . . . . . . 1 . . . . 2 . Sneak Attacks 11 | . . . 1 1 . 5 2 . . . . . . . . . . . . . . . 1 1 Combat Hostiles . | . . . . . . . . . . . . . . . . . . . . . . . . . Follow-up Attacks . | . . . . . . . . . . . . . . . . . . . . . . . . . Damage Inflicted 74868 | 111 530 1089 1523 953 955 2882 5327 424 4193 758 332 1379 184 2756 2082 1439 155 3568 2821 8903 3970 5833 7880 14821 Guns 10879 | 111 530 1089 1390 442 841 1289 991 58 1444 246 127 . . 526 . . . . 309 1293 . 193 . . Cannons 49765 | . . . . . . 227 2364 366 2459 512 205 496 184 2227 1617 1112 . 2610 2512 4009 3915 5614 7025 12311 Explosions 11370 | . . . . 443 . 762 1745 . 261 . . 883 . . 465 327 . 957 . 3601 . . 852 1074 Melee 2758 | . . . 130 68 114 604 221 . . . . . . . . . 155 1 . . . 26 3 1436 Ramming 96 | . . . 3 . . . 6 . 29 . . . . 3 . . . . . . 55 . . . Kinetic 28653 | 111 . 485 1060 442 841 1187 1132 . 2217 361 181 236 80 2175 981 1112 . 1600 2728 2725 . 1286 7025 688 Thermal 28605 | . 530 569 330 . . 255 1713 424 1288 . . 402 . . . . . 1081 93 1861 3915 4521 . 11623 Explosive 6166 | . . . . 443 . 582 366 . 176 . . . . . . 327 . . . 2346 . . 852 1074 Electromagnetic 7648 | . . 35 . . . 254 1889 . 483 397 151 481 . . 1101 . . 886 . 1971 . . . . Impact . | . . . . . . . . . . . . . . . . . . . . . . . . . Slashing 2754 | . . . 130 68 114 604 221 . . . . . . . . . 155 . . . . 26 . 1436 Piercing 4 | . . . . . . . . . . . . . . . . . . 1 . . . . 3 . Entropic 942 | . . . . . . . . . . . . 260 104 578 . . . . . . . . . . Highest Corruption 19 | . . . . . . 5 3 3 4 2 . . . 1 4 5 5 6 . . 4 11 4 19 Average Corruption 4 | . . . . . . 2 3 3 2 1 . . . 1 3 4 5 5 . . 3 5 3 10 Corruption Purged 15 | . . . . . . 6 . . 5 2 . . . . . . . . . . . . . 2 Corruption Blocked . | . . . . . . . . . . . . . . . . . . . . . . . . . Effects 255 | . . . . . . 14 46 9 19 2 . . . . 11 8 3 24 . . 9 26 22 62 Message Errors 77 | . . . . . . 7 15 6 6 . . . . . 3 3 2 9 . . 2 4 8 12 Matter Fused 44 | . . . . . . 1 9 1 4 . . . . . 1 1 . 3 . . 3 5 4 12 Heat Flow Errors 33 | . . . . . . 2 5 1 2 . . . . . 1 1 . 2 . . 1 7 1 10 Energy Discharges 21 | . . . . . . . 1 . 1 1 . . . . 2 . 1 3 . . . 3 4 5 Parts Rejected 7 | . . . . . . . 1 . 1 . . . . . 1 . . . . . 1 . . 3 Parts Fused 3 | . . . . . . 1 . . . . . . . . 1 . . . . . . 1 . . Data Loss (minor) 31 | . . . . . . 2 7 . 2 1 . . . . 1 1 . 6 . . 1 3 2 5 Data Loss (major) 17 | . . . . . . . 5 1 1 . . . . . 1 2 . 1 . . . . 1 5 Misfires 4 | . . . . . . 1 2 . . . . . . . . . . . . . . . . 1 Alerts 3 | . . . . . . . 1 . 1 . . . . . . . . . . . . . . 1 Misdirections 5 | . . . . . . . . . . . . . . . . . . . . . . . . 5 Weapon Failures 10 | . . . . . . . . . 1 . . . . . . . . . . . 1 3 2 3 Overload Shots . | . . . . . . . . . . . . . . . . . . . . . . . . . Overflow Damage 4911 | . . . . 37 66 107 332 . 161 9 62 2 . 108 140 157 . 220 364 539 524 543 584 956 Projectiles 4201 | . . . . . . 23 199 . 124 9 62 2 . 108 140 118 . 196 364 497 511 543 535 770 Explosions 309 | . . . . 9 . . 69 . 37 . . . . . . 39 . 24 . 42 . . 49 40 Melee 401 | . . . . 28 66 84 64 . . . . . . . . . . . . . 13 . . 146 Knockbacks 121 | . . . . . . 3 13 . 15 1 . . 3 12 15 . . 7 4 13 . 11 21 3 Impact 1 | . . . . . . . . . 1 . . . . . . . . . . . . . . . Kinetic 110 | . . . . . . 3 13 . 14 1 . . 3 11 13 . . 6 4 12 . 9 18 3 Secondary 10 | . . . . . . . . . . . . . . 1 2 . . 1 . 1 . 2 3 . Self-Inflicted Damage 531 | . . . . 10 . 75 20 . 45 . . . . . . 19 . 170 . 43 . . 112 37 Shots 15 | . . . . 1 . 1 1 . 1 . . . . . . 1 . 6 . 1 . . 2 1 Rammed 1 | . . . 1 . . . . . . . . . . . . . . . . . . . . . Targets Rammed 8 | . . . 1 . . . 1 . 2 . . . . 1 . . . . . . 3 . . . Kicked 7 | . . . . . . . 1 . 2 . . . . 1 . . . . . . 3 . . . Crushed . | . . . . . . . . . . . . . . . . . . . . . . . . . Highest Temperature 1104 | . 78 54 349 60 104 162 1104 326 540 385 33 128 114 450 363 158 . 169 240 331 146 237 150 319 Average Temperature 103 | . 11 21 103 26 38 47 209 147 143 165 14 46 57 124 138 51 . 67 91 59 94 105 17 72 Received Heat Transfer 4941 | . 81 288 180 126 93 486 795 27 342 162 30 8 . 132 566 78 . 290 48 354 126 315 54 360 Effects 35 | . . . . . . . 21 . 7 1 . . . 5 1 . . . . . . . . . Shutdowns 7 | . . . . . . . 5 . 1 . . . . 1 . . . . . . . . . . Energy Bleed 4 | . . . . . . . . . 4 . . . . . . . . . . . . . . . Interference 7 | . . . . . . . 3 . . 1 . . . 3 . . . . . . . . . . Matter Decay 3 | . . . . . . . 2 . . . . . . 1 . . . . . . . . . . Short Circuit 6 | . . . . . . . 4 . 1 . . . . . 1 . . . . . . . . . Damage (minor) 2 | . . . . . . . 2 . . . . . . . . . . . . . . . . . Damage (major) 3 | . . . . . . . 3 . . . . . . . . . . . . . . . . . Damage (core) 3 | . . . . . . . 2 . 1 . . . . . . . . . . . . . . . Siege Activations 1 | . . . . . . . . . . . . . . . 1 . . . . . . . . . Total Turns 7 | . . . . . . . . . . . . . . . 7 . . . . . . . . . Longest Duration 7 | . . . . . . . . . . . . . . . 7 . . . . . . . . . Martial Activations . | . . . . . . . . . . . . . . . . . . . . . . . . . Shielding Activations . | . . . . . . . . . . . . . . . . . . . . . . . . . Robots Disrupted 1 | . . . . . . . . . . . . . . . . . . . . 1 . . . . Combat Hostiles 1 | . . . . . . . . . . . . . . . . . . . . 1 . . . . Robots Corrupted 21 | . . . . . . . 5 . 2 . . . . . 4 . . 2 . 7 . . 1 . Combat Hostiles 18 | . . . . . . . 4 . 1 . . . . . 4 . . 2 . 7 . . . . Parts Fried 39 | . . . . . . . 8 . 3 . . . . . 4 . . 5 . 15 1 . 3 . Impact Corruptions 4 | . . . . . . . . . . . . . . . . . . . . . 1 . 3 . Robots Melted 3 | . . . . . . 1 . . 1 1 . . . . . . . . . . . . . . Combat Hostiles 3 | . . . . . . 1 . . 1 1 . . . . . . . . . . . . . . Parts Melted 30 | . . 2 . . 1 2 3 . 1 1 . . . 1 4 . . 2 . . 2 1 . 10 Heat Transferred 15070 | . 705 710 420 . . 568 900 285 975 . . 400 . . . . . 470 . 629 1443 1406 . 6159 Parts Sabotaged 1 | . . . . . . . . . . . . . . . . . . . . . . . . 1 Parts Stolen . | . . . . . . . . . . . . . . . . . . . . . . . . . Parts Stripped . | . . . . . . . . . . . . . . . . . . . . . . . . . Power Chain Reactions 14 | . . . . . . . 5 . . . . 5 . . 1 . . 2 . 1 . . . . Alert | -11 -10 -10 -8 -8 -8 -6 -6 -6 -5 -5 -5 -5 -4 -4 -4 -4 -4 -3 -3 -2 -2 -2 -1 -1 ------- Run | Yrd Mat Sub Mat Sto Rec Fac Ext Cet Fac Upp Upp War Pro Fac Upp Upp Zhi Pro Res Res Qua Frg Acc Com Maximum Alert Level 5 | . . . . . . 1 1 . 2 . . . . 1 . . . . . 4 3 1 3 5 Low Security (%) 56 | 100 100 . 100 100 100 78 58 100 17 . . . . 96 . . . . 100 40 . . 40 . Level 1 21 | . . . . . . 21 41 . 32 . . . . 3 . . . . . 18 . 100 29 . Level 2 13 | . . . . . . . . . 49 . . . . . . . . . . 32 96 . 14 9 Level 3 3 | . . . . . . . . . . . . . . . . . . . . 7 3 . 15 22 Level 4 2 | . . . . . . . . . . . . . . . . . . . . 1 . . . 26 Level 5 1 | . . . . . . . . . . . . . . . . . . . . . . . . 23 High Security 1 | . . . . . . . . . . . . . . . . . . . . . . . . 17 Max Security . | . . . . . . . . . . . . . . . . . . . . . . . . . Peak Influence 1905 | 5 75 . 191 193 72 266 324 152 609 . . . . 219 . . . . 104 1131 708 394 1044 1905 Initial 667 | . . . . 66 52 50 123 16 67 . . . . . . . . . 69 . 633 371 201 667 Average 291 | 1 13 . 113 134 6 123 142 35 367 . . . . 83 . . . . 35 341 585 325 380 1329 Influence Increases 13733 | 20 269 20 546 259 77 1012 1032 292 1324 290 90 535 66 543 295 180 5 405 360 1641 578 644 1366 1884 Destroy 0b10 Robot/C 7580 | . 140 20 360 140 40 540 600 160 540 200 80 400 40 260 220 160 . 320 240 820 260 320 640 1080 Destroy 0b10 Robot/NC 465 | 20 30 . 35 10 20 30 50 10 40 . . . 5 50 5 . 5 10 10 15 15 5 75 25 Destroy Leader 1522 | . 40 . 116 40 . 162 116 . 166 30 10 . 10 90 40 20 . 30 54 134 42 92 126 204 Allied During Kill 461 | . . . . . 1 61 36 102 94 . . 120 11 22 . . . . 14 . . . . . Successful Hack 386 | . 44 . 17 . . 14 47 . 5 . . . . 33 . . . . . . 54 44 51 77 Disable Machine 750 | . . . 15 45 15 30 135 15 210 . . . . 30 . . . . . 15 120 45 45 30 Destroy Structure 1649 | . . . 3 24 1 65 48 5 254 . . . . 58 . . . . 42 462 57 123 279 228 Advance Influence 50 | . . . . . . 50 . . . . . . . . . . . . . . . . . . Partial Spotted 75 | . . . . . . . . . . . . . . . . . . . . 15 15 . 30 15 Lose Combat Pursuer 795 | . 15 . . . . 60 . . 15 60 . 15 . . 30 . . 45 . 180 15 15 120 225 Influence Decreases 11868 | 20 269 20 388 282 212 758 1256 202 844 502 224 324 531 336 296 264 127 301 464 514 1044 968 660 1062 Entered New Map 2959 | . . . . 92 83 . 131 14 53 222 74 254 465 . 78 40 122 . 35 . 494 290 136 376 Time Decay 7053 | 20 269 20 378 180 124 618 588 158 570 270 140 50 66 296 198 214 5 271 342 458 380 478 474 486 Lost Part 634 | . . . . 10 5 60 113 . 30 10 10 . . . 20 10 . 30 10 36 . 40 50 200 Lost Ally 508 | . . . 10 . . 80 160 30 41 . . 20 . 40 . . . . 77 20 20 10 . . Purge Threat 714 | . . . . . . . 264 . 150 . . . . . . . . . . . 150 150 . . Squads Dispatched 70 | . . . 2 1 . 8 5 . 11 . . . . 6 . . . 1 5 1 3 3 8 16 Investigation 5 | . . . . . . . 1 . . . . . . 1 . . . . 1 . . . 1 1 Extermination 28 | . . . . . . 6 . . 4 . . . . 2 . . . . 1 . 3 3 5 4 Reinforcement 19 | . . . 2 1 . 2 4 . 2 . . . . 2 . . . . 3 1 . . 1 1 Assault 14 | . . . . . . . . . 2 . . . . . . . . 1 . . . . 1 10 Garrison 4 | . . . . . . . . . 3 . . . . 1 . . . . . . . . . . Intercept . | . . . . . . . . . . . . . . . . . . . . . . . . . Searches Triggered . | . . . . . . . . . . . . . . . . . . . . . . . . . Construction Impeded 3 | . . . . . . . 3 . . . . . . . . . . . . . . . . . Haulers Reinforced 7 | . . . . . . . . . 1 . . . . 1 . . . . 3 1 . . 1 . Active Scanning Responses . | . . . . . . . . . . . . . . . . . . . . . . . . . Cargo Convoy Interrupts 1 | . . . . . . . . . 1 . . . . . . . . . . . . . . . Stealth | -11 -10 -10 -8 -8 -8 -6 -6 -6 -5 -5 -5 -5 -4 -4 -4 -4 -4 -3 -3 -2 -2 -2 -1 -1 --------- Run | Yrd Mat Sub Mat Sto Rec Fac Ext Cet Fac Upp Upp War Pro Fac Upp Upp Zhi Pro Res Res Qua Frg Acc Com Distress Signals 36 | . 2 . 2 2 1 3 2 2 4 . . . . 3 . . . . 3 7 1 . 2 2 Communications Jammed 53 | . . . . . . . . . . . . . . . . . . . . . . 4 9 40 Distress Signals 53 | . . . . . . . . . . . . . . . . . . . . . . 4 9 40 Times Spotted 586 | . 19 11 24 10 6 38 38 10 39 12 6 32 3 16 12 8 . 21 13 74 19 27 43 105 Peak Tracking Total 14 | . 4 4 5 3 1 8 8 5 4 5 4 14 2 4 4 4 . 7 4 10 4 3 6 12 Tactical Retreats 38 | . 1 1 . . 2 3 . . 1 2 . 1 . . 1 . . 3 . 6 1 1 5 10 Traps | -11 -10 -10 -8 -8 -8 -6 -6 -6 -5 -5 -5 -5 -4 -4 -4 -4 -4 -3 -3 -2 -2 -2 -1 -1 ------- Run | Yrd Mat Sub Mat Sto Rec Fac Ext Cet Fac Upp Upp War Pro Fac Upp Upp Zhi Pro Res Res Qua Frg Acc Com Traps Triggered 32 | . 2 . . . . 2 10 . 4 . . . . . . . . . 2 . 2 1 . 9 Indirectly . | . . . . . . . . . . . . . . . . . . . . . . . . . Trap Hack Attempts . | . . . . . . . . . . . . . . . . . . . . . . . . . Triggered . | . . . . . . . . . . . . . . . . . . . . . . . . . Disarmed . | . . . . . . . . . . . . . . . . . . . . . . . . . Reprogrammed . | . . . . . . . . . . . . . . . . . . . . . . . . . Reused . | . . . . . . . . . . . . . . . . . . . . . . . . . Traps Extracted . | . . . . . . . . . . . . . . . . . . . . . . . . . Installed . | . . . . . . . . . . . . . . . . . . . . . . . . . Triggered . | . . . . . . . . . . . . . . . . . . . . . . . . . Most Traps Carried 2 | . . . . . 1 . . . . . . . . . . . . 2 2 2 2 2 2 2 Machines | -11 -10 -10 -8 -8 -8 -6 -6 -6 -5 -5 -5 -5 -4 -4 -4 -4 -4 -3 -3 -2 -2 -2 -1 -1 ---------- Run | Yrd Mat Sub Mat Sto Rec Fac Ext Cet Fac Upp Upp War Pro Fac Upp Upp Zhi Pro Res Res Qua Frg Acc Com Machines Disabled 54 | . . . 1 3 1 2 11 1 14 . . . . 2 . 1 . . . 1 9 3 3 2 Max in Single Turn 5 | . . . 1 1 1 2 1 1 5 . . . . 1 . 1 . . . 1 1 1 1 1 Garrison Access 3 | . . . . . . . . . . . . . . . . . . . . 2 1 . . . Machines Repaired . | . . . . . . . . . . . . . . . . . . . . . . . . . Machines Dismantled . | . . . . . . . . . . . . . . . . . . . . . . . . . Machines Sabotaged . | . . . . . . . . . . . . . . . . . . . . . . . . . Overloaded Fab Kills . | . . . . . . . . . . . . . . . . . . . . . . . . . Hacking | -11 -10 -10 -8 -8 -8 -6 -6 -6 -5 -5 -5 -5 -4 -4 -4 -4 -4 -3 -3 -2 -2 -2 -1 -1 --------- Run | Yrd Mat Sub Mat Sto Rec Fac Ext Cet Fac Upp Upp War Pro Fac Upp Upp Zhi Pro Res Res Qua Frg Acc Com Machines Accessed 114 | . 8 3 8 2 2 9 11 . 7 . . 1 . 11 1 . 4 . 3 . 11 8 10 15 Terminals 74 | . 7 . 6 . 1 5 9 . 3 . . . . 7 . . . . 1 . 9 8 6 12 Fabricators 4 | . . . . . . 1 . . 1 . . . . 2 . . . . . . . . . . Repair Stations 10 | . 1 . 1 . . 1 1 . 1 . . . . 1 . . . . . . 1 . 1 2 Recycling Units 8 | . . . 1 1 . 1 1 . 2 . . . . 1 . . . . . . . . . 1 Scanalyzers . | . . . . . . . . . . . . . . . . . . . . . . . . . Garrison Access 8 | . . . . 1 . 1 . . . . . . . . . . . . 2 . 1 . 3 . Total Hacks 283 | . 34 5 18 3 7 13 33 . 14 . . 1 . 37 1 . 17 . 6 . 20 20 21 33 Successful 123 | . 21 5 7 1 4 3 12 . 7 . . 1 . 16 1 . 17 . . . 8 7 5 8 Failed 160 | . 13 . 11 2 3 10 21 . 7 . . . . 21 . . . . 6 . 12 13 16 25 Catastrophic 42 | . 1 . . . 1 4 2 . 3 . . . . 4 . . . . . . 6 3 6 12 Database Lockouts . | . . . . . . . . . . . . . . . . . . . . . . . . . Manual 117 | . 24 . 12 1 . 4 7 1 3 . . . . 16 . . . . 2 . 13 14 1 19 Terminals 194 | . 31 . 14 . 4 6 26 . 6 . . . . 25 . . . . 2 . 17 20 14 29 Fabricators 11 | . . . . . . 1 . . 1 . . . . 9 . . . . . . . . . . Repair Stations 20 | . 3 . 2 . . 2 2 . 3 . . . . 1 . . . . . . 2 . 2 3 Recycling Units 17 | . . . 2 1 . 2 5 . 4 . . . . 2 . . . . . . . . . 1 Scanalyzers . | . . . . . . . . . . . . . . . . . . . . . . . . . Garrison Access 14 | . . . . 2 . 2 . . . . . . . . . . . . 4 . 1 . 5 . Terminal Hacks 59 | . 7 5 1 . 4 1 5 . 2 . . 1 . 6 1 . 17 . . . 3 1 4 1 Record 9 | . . 3 . . 1 . . . . . . . . . . . 5 . . . . . . . Part Schematic 5 | . 1 . . . . . . . . . . . . . . . 4 . . . . . . . Robot Analysis 4 | . . . . . . . . . . . . . . . . . 4 . . . . . . . Prototype ID Bank 8 | . 2 . . . . . 1 . . . . . . 1 . . 4 . . . . . . . Open Door 10 | . . 1 . . . 1 2 . . . . 1 . . 1 . . . . . 1 . 3 . Branch Access Points 4 | . . . 1 . . . . . 1 . . . . 1 . . . . . . . . 1 . Emergency Access Points 1 | . 1 . . . . . . . . . . . . . . . . . . . . . . . Machine Index 1 | . . . . . . . . . . . . . . . . . . . . . 1 . . . Alert Level 3 | . . . . . 1 . . . . . . . . 2 . . . . . . . . . . Unreport Threat 5 | . . . . . . . 2 . 1 . . . . . . . . . . . 1 1 . . Locate Traps 1 | . 1 . . . . . . . . . . . . . . . . . . . . . . . Maintenance Status 1 | . 1 . . . . . . . . . . . . . . . . . . . . . . . Security Status 1 | . 1 . . . . . . . . . . . . . . . . . . . . . . . Hauler Manifests 1 | . . . . . . . . . . . . . . 1 . . . . . . . . . . Zone Layout 1 | . . . . . . . . . . . . . . 1 . . . . . . . . . . Disengage Seal 1 | . . . . . . . . . . . . . . . . . . . . . . . . 1 Release Object 3 | . . 1 . . 2 . . . . . . . . . . . . . . . . . . . Fabricator Hacks 4 | . . . . . . 1 . . 1 . . . . 2 . . . . . . . . . . Network Status 3 | . . . . . . . . . 1 . . . . 2 . . . . . . . . . . Build 1 | . . . . . . 1 . . . . . . . . . . . . . . . . . . Repair Station Hacks 9 | . 2 . 2 . . . 1 . 1 . . . . . . . . . . . . . 1 2 Scan Component 6 | . 1 . 1 . . . 1 . 1 . . . . . . . . . . . . . 1 1 Repair 3 | . 1 . 1 . . . . . . . . . . . . . . . . . . . . 1 Recycling Unit Hacks 7 | . . . . 1 . . 2 . 3 . . . . . . . . . . . . . . 1 Report Inventory 5 | . . . . 1 . . 1 . 2 . . . . . . . . . . . . . . 1 Retrieve Components 2 | . . . . . . . 1 . 1 . . . . . . . . . . . . . . . Scanalyzer . | . . . . . . . . . . . . . . . . . . . . . . . . . Garrison Access Hacks 1 | . . . . . . . . . . . . . . . . . . . . . 1 . . . Seal Access 1 | . . . . . . . . . . . . . . . . . . . . . 1 . . . Unauthorized Hacks 43 | . 12 . 4 . . 1 4 . . . . . . 8 . . . . . . 4 6 . 4 Terminals 38 | . 12 . 4 . . 1 3 . . . . . . 4 . . . . . . 4 6 . 4 Track 1 | . 1 . . . . . . . . . . . . . . . . . . . . . . . Assimilate 3 | . 1 . 1 . . . . . . . . . . . . . . . . . . 1 . . Botnet 27 | . 5 . 3 . . 1 3 . . . . . . 3 . . . . . . 4 4 . 4 Detonate 1 | . . . . . . . . . . . . . . . . . . . . . . 1 . . Operators 2 | . 1 . . . . . . . . . . . . 1 . . . . . . . . . . Skim 4 | . 4 . . . . . . . . . . . . . . . . . . . . . . . Fabricators 4 | . . . . . . . . . . . . . . 4 . . . . . . . . . . Liberate 1 | . . . . . . . . . . . . . . 1 . . . . . . . . . . Fabnet 2 | . . . . . . . . . . . . . . 2 . . . . . . . . . . Haulers 1 | . . . . . . . . . . . . . . 1 . . . . . . . . . . Repair Stations . | . . . . . . . . . . . . . . . . . . . . . . . . . Recycling Units 1 | . . . . . . . 1 . . . . . . . . . . . . . . . . . Monitor 1 | . . . . . . . 1 . . . . . . . . . . . . . . . . . Scanalyzers . | . . . . . . . . . . . . . . . . . . . . . . . . . Garrison Access . | . . . . . . . . . . . . . . . . . . . . . . . . . Data Cores Recovered 1 | . . . . . . . . . . . . . . 1 . . . . . . . . . . Used 1 | . . . . . . . . . . . . . . 1 . . . . . . . . . . Hacking Detections 97 | . 8 . 7 1 1 9 10 1 7 . . . . 9 . . . . 3 . 9 8 9 15 Full Trace Events 5 | . . . . . 1 . 1 . . . . . . 1 . . . . . . . . 1 1 Feedback Events 1 | . . . . . . . . . . . . . . . . . . . . . . . . 1 Corruption 1 | . . . . . . . . . . . . . . . . . . . . . . . . 1 Feedback Blocked . | . . . . . . . . . . . . . . . . . . . . . . . . . Robot Schematics Acquired . | . . . . . . . . . . . . . . . . . . . . . . . . . Robots Built . | . . . . . . . . . . . . . . . . . . . . . . . . . Authchips . | . . . . . . . . . . . . . . . . . . . . . . . . . Time . | . . . . . . . . . . . . . . . . . . . . . . . . . Total Robot Build Rating . | . . . . . . . . . . . . . . . . . . . . . . . . . Part Schematics Acquired 5 | . 1 . . . . . . . . . . . . . . . 4 . . . . . . . Parts Built 2 | . . . . . . 2 . . . . . . . . . . . . . . . . . . Authchips . | . . . . . . . . . . . . . . . . . . . . . . . . . Time 58 | . . . . . . 58 . . . . . . . . . . . . . . . . . . Total Part Build Rating 14 | . . . . . . 14 . . . . . . . . . . . . . . . . . . Parts Repaired 3 | . 1 . 1 . . . . . . . . . . . . . . . . . . . . 1 Time 72 | . 32 . 26 . . . . . . . . . . . . . . . . . . . . 14 Parts Recycled . | . . . . . . . . . . . . . . . . . . . . . . . . . Recycled Matter . | . . . . . . . . . . . . . . . . . . . . . . . . . Retrieved Matter . | . . . . . . . . . . . . . . . . . . . . . . . . . Retrieved Components 3 | . . . . . . . 1 . 2 . . . . . . . . . . . . . . . Parts Scanalyzed . | . . . . . . . . . . . . . . . . . . . . . . . . . Part Schematics Acquired . | . . . . . . . . . . . . . . . . . . . . . . . . . Parts Damaged . | . . . . . . . . . . . . . . . . . . . . . . . . . Bothacking | -11 -10 -10 -8 -8 -8 -6 -6 -6 -5 -5 -5 -5 -4 -4 -4 -4 -4 -3 -3 -2 -2 -2 -1 -1 ------------ Run | Yrd Mat Sub Mat Sto Rec Fac Ext Cet Fac Upp Upp War Pro Fac Upp Upp Zhi Pro Res Res Qua Frg Acc Com Used RIF Installer . | . . . . . . . . . . . . . . . . . . . . . . . . . Robots Hacked 10 | . . . . . . . . . . . . . . . . . . . 4 3 1 1 . 1 Non-combat . | . . . . . . . . . . . . . . . . . . . . . . . . . Combat 9 | . . . . . . . . . . . . . . . . . . . 4 3 1 1 . . Robot Hacks Applied . | . . . . . . . . . . . . . . . . . . . . . . . . . Manual 1 | . . . . . . . . . . . . . . . . . . . . . . . . 1 Relay Couplers Released 6 | . . . . . . . . . . . . . . . . . . . . 2 . 4 . . Machine Destruction 2 | . . . . . . . . . . . . . . . . . . . . 2 . . . . Programmers 4 | . . . . . . . . . . . . . . . . . . . . . . 4 . . Fabnet Peak Effective % 6 | . . . . . . . . . . . . . . . . . . 6 6 2 2 2 . . Autooverrided 9 | . . . . . . . . . . . . . . . . . . . 4 3 1 1 . . Robots Rewired 14 | . . . . . 7 . . . . . . 5 . . . . . 2 . . . . . . Allies Hacked 2 | . . . . . . . . . . . . . . . . . . . 1 . . 1 . . Hacks Repelled . | . . . . . . . . . . . . . . . . . . . . . . . . . Allies | -11 -10 -10 -8 -8 -8 -6 -6 -6 -5 -5 -5 -5 -4 -4 -4 -4 -4 -3 -3 -2 -2 -2 -1 -1 -------- Run | Yrd Mat Sub Mat Sto Rec Fac Ext Cet Fac Upp Upp War Pro Fac Upp Upp Zhi Pro Res Res Qua Frg Acc Com Total Allies 42 | . . . 1 . 7 . 11 5 . . . 5 . . . . . 3 4 3 1 2 . . Largest Group 7 | . . . 1 . 7 4 6 7 5 . . 5 4 4 . . . 2 2 1 1 2 . . Highest-Rated Group 659 | . . . 10 . 104 69 210 659 467 . . 303 260 260 . . . 89 124 148 58 108 . . Highest-Rated Ally 159 | . . . 10 . 21 21 159 159 159 . . 68 68 68 . . . 47 82 148 58 82 . . Total Orders . | . . . . . . . . . . . . . . . . . . . . . . . . . Ally Attacks 247 | . . . . . . 29 41 50 40 . . 28 4 10 . . . 4 23 11 3 4 . . Total Damage 8589 | . . . . . . 413 666 1776 1276 . . 1396 314 612 . . . 115 658 1241 83 39 . . Kills 49 | . . . . . . 5 6 10 5 . . 10 2 4 . . . . 3 4 . . . . Allies Corrupted 1 | . . . . . . . . . . . . . . . . . . . 1 . . . . . Allies Melted . | . . . . . . . . . . . . . . . . . . . . . . . . . Intel | -11 -10 -10 -8 -8 -8 -6 -6 -6 -5 -5 -5 -5 -4 -4 -4 -4 -4 -3 -3 -2 -2 -2 -1 -1 ------- Run | Yrd Mat Sub Mat Sto Rec Fac Ext Cet Fac Upp Upp War Pro Fac Upp Upp Zhi Pro Res Res Qua Frg Acc Com Active Infowar (turns) 12451 | 31 166 198 . . . . 4 . 871 532 284 929 683 865 393 442 124 527 792 1005 750 1233 1208 1414 Optics 5326 | . . . . . . . . . 459 496 284 929 683 855 207 . . . . . . . . 1413 Sensors 2425 | . . . . . . . . . . . . . . . . . . . . . 321 1184 919 1 Terrain 1784 | 31 166 . . . . . . . 412 . . . . . . 190 53 71 792 69 . . . . Traps 2 | . . . . . . . 2 . . . . . . . . . . . . . . . . . Seismic 198 | . . 198 . . . . . . . . . . . . . . . . . . . . . . Machine Analysis 1092 | . . . . . . . . . . . . . . . . . . . 87 1005 . . . . Cloaking 2850 | . . . . . . . . . . 349 . . 440 782 186 442 124 527 . . . . . . Jamming 2912 | . . . . . . . 2 . . . . . . . . . . . . . 750 1233 860 67 Robot Analysis Total 4 | . . . . . . . . . . . . . . . . . 4 . . . . . . . Derelict Logs Recovered 7 | . . . . . . . . . . . 2 . . . 2 3 . . . . . . . . Drone Launches . | . . . . . . . . . . . . . . . . . . . . . . . . . Drone Recoveries . | . . . . . . . . . . . . . . . . . . . . . . . . . Exploration | -11 -10 -10 -8 -8 -8 -6 -6 -6 -5 -5 -5 -5 -4 -4 -4 -4 -4 -3 -3 -2 -2 -2 -1 -1 ------------- Run | Yrd Mat Sub Mat Sto Rec Fac Ext Cet Fac Upp Upp War Pro Fac Upp Upp Zhi Pro Res Res Qua Frg Acc Com Turns Passed 26016 | 211 1037 2707 1054 366 1154 2063 2496 564 1820 588 284 929 683 886 419 442 137 1077 906 1321 899 1233 1208 1532 Spaces Moved 17970 | 103 550 973 653 186 817 1021 1216 210 1052 536 262 591 468 745 416 524 140 715 760 1029 830 1131 1335 1707 Core 5 | 4 . . . . . . . . . . . . . . . . . 1 . . . . . . Treads 4673 | 99 550 964 . . . 2 . . . . . . . . 254 524 140 537 324 104 . . 74 1101 Legs 6263 | . . . . . . 87 599 202 619 . . . 414 246 . . . 177 411 801 830 1131 140 606 Wheels 3239 | . . 9 653 186 817 932 617 . . . . . . . . . . . 25 . . . . . Hover 3129 | . . . . . . . . 8 433 536 262 591 54 . . . . . . 124 . . 1121 . Flight 661 | . . . . . . . . . . . . . . 499 162 . . . . . . . . . Fastest Speed 38 | 50 160 130 107 115 90 120 116 120 104 88 88 136 132 70 70 70 70 102 76 48 68 68 38 38 Average Speed 106 | 155 160 243 113 130 115 135 153 164 126 89 92 141 142 90 70 70 88 113 90 88 73 73 57 38 Slowest Speed 1000 | 160 160 320 170 145 120 480 265 180 165 104 136 206 206 132 70 70 115 1000 102 217 76 209 229 179 Overloaded Moves . | . . . . . . . . . . . . . . . . . . . . . . . . . Propulsion Burnouts . | . . . . . . . . . . . . . . . . . . . . . . . . . Robots Hopped 1 | . . . . . . . . . . . . . . . 1 . . . . . . . . . Potential Cave-ins 13 | . . . . . . . . . . . . . . . . . . . 2 2 . 3 . 6 Cave-ins Triggered 2 | . . . . . . . . . . . . . . . . . . . . . . 1 . 1 Exploration Rate (%) 52 | 6 89 30 46 25 75 30 81 74 25 69 56 84 72 24 61 71 60 79 26 33 84 31 35 53 Regions Visited 24 Branch Regions 16 Pre-discovered Areas 4 | . . . . . . . . . . . . . . . . 1 3 . . . . . . . Known Exits Taken 10 | . . . 1 . . . . . 1 . 1 . . 1 1 . . 1 . 1 1 1 1 . Unknown Exits Taken 14 | 1 1 1 . 1 1 1 1 1 . 1 . 1 1 . . 1 1 . 1 . . . . . Scrap Searched 21 | . . 5 . . . . . . . 3 3 . 3 . 3 3 . 1 . . . . . . Spaces Dug 246 | . . . 2 2 1 12 38 . 29 . . . . . . 7 . 8 6 28 18 20 38 37 Terrain Destroyed 938 | . . . 2 30 1 66 53 1 115 9 2 11 2 32 19 56 . 49 22 202 24 55 106 81 Melee 28 | . . . 2 2 1 12 . . . . . . . . . 2 . 3 . . . . . 6 Projectile 456 | . . . . . . . 17 1 69 9 2 6 2 32 14 14 . 34 22 61 24 55 69 25 AOE 454 | . . . . 28 . 54 36 . 46 . . 5 . . 5 40 . 12 . 141 . . 37 50 Terrain Rammed . | . . . . . . . . . . . . . . . . . . . . . . . . . Walls Destroyed . | . . . . . . . . . . . . . . . . . . . . . . . . . Machines Disabled . | . . . . . . . . . . . . . . . . . . . . . . . . . Actions | -11 -10 -10 -8 -8 -8 -6 -6 -6 -5 -5 -5 -5 -4 -4 -4 -4 -4 -3 -3 -2 -2 -2 -1 -1 --------- Run | Yrd Mat Sub Mat Sto Rec Fac Ext Cet Fac Upp Upp War Pro Fac Upp Upp Zhi Pro Res Res Qua Frg Acc Com Total 22712 | 134 653 1179 865 263 979 1548 1691 420 1361 600 287 655 476 873 482 567 151 916 919 1263 1042 1421 1651 2316 Wait 2359 | 9 51 55 102 30 55 373 229 183 141 35 12 16 3 61 15 7 . 104 83 78 105 170 164 278 Move 17941 | 102 549 972 652 185 816 1020 1215 209 1051 535 261 590 467 744 413 523 139 714 759 1028 829 1129 1334 1705 Hop 1 | . . . . . . . . . . . . . . . 1 . . . . . . . . . Pick Up 150 | 6 12 12 13 5 33 18 4 5 5 2 . . . 3 1 1 1 3 2 5 7 3 3 6 Fast Attach 149 | 7 6 5 12 1 3 9 10 2 9 2 . 2 . 1 2 2 4 2 11 5 9 7 10 28 Attach 93 | . . 5 1 2 5 7 17 3 10 1 . 2 . 2 3 1 1 3 3 9 1 2 7 8 Detach 110 | . . . 3 . 3 11 19 5 16 2 . 4 . 2 3 2 1 3 6 10 4 2 6 8 Swap 93 | . 2 5 15 9 5 7 10 . 3 3 2 . 1 3 1 2 . 1 . 6 1 2 2 13 Drop 169 | . 6 19 19 7 15 12 15 4 9 1 4 2 . 3 2 . 3 4 4 7 8 5 4 16 Fire 1432 | 10 27 99 43 17 40 58 92 9 105 19 8 39 5 53 41 26 . 62 51 115 75 97 114 227 Melee 91 | . . . 4 7 3 25 8 . . . . . . . . 3 2 4 . . . 3 7 25 Ram 1 | . . . . . . . . . . . . . . . . . . . . . . . . 1 Kick 7 | . . . . . . . 1 . 2 . . . . 1 . . . . . . 3 . . . Crush 1 | . . . 1 . . . . . . . . . . . . . . . . . . . . . Escape Stasis 91 | . . . . . . 8 71 . 10 . . . . . . . . . . . . 1 . 1 Rewire 17 | . . . . . 1 . . . . . . . . . . . . 16 . . . . . . Trap . | . . . . . . . . . . . . . . . . . . . . . . . . . Miscellaneous 7 | . . 7 . . . . . . . . . . . . . . . . . . . . . . Route ------- -11/Scrapyard -10/Materials (discovered 5 exits: [*Mat x3] / [*Min] / *Sub) -10/Subcaves -8/Materials (discovered 2 exits: [*Fac] / *Sto) -8/Storage -8/Recycling -6/Factory -6/Extension (discovered 2 exits: *Fac / *Cet) -6/Cetus (discovered 2 exits: *Fac / [*Arc]) -5/Factory (discovered 3 exits: *Fac / *Upp x2) -5/Upper Caves -5/Upper Caves -5/Warlord -4/Proximity Caves -4/Factory (discovered 6 exits: *Res x3 / *Upp x2 / Arm) -4/Upper Caves -4/Upper Caves (discovered 2 exits: Res / *Zhi) -4/Zhirov -3/Proximity Caves -3/Research -2/Research (discovered 3 exits: *Acc x2 / *Qua) -2/Quarantine (discovered 3 exits: *Acc / *Sec / *Frg) -2/Protoforge -1/Access -1/Command To Epsilon Eridani History --------- Turn | Location | Event 5 | -11/Scrapyard | Discovered new exit (range 15) 212 | -11/Scrapyard | Entered Materials 308 | -10/Materials | Build established: Mutant 402 | -10/Materials | Discovered new exit (range 10) 714 | -10/Materials | Repaired Spread Laser 830 | -10/Materials | Discovered new exit (range 5) 911 | -10/Materials | Discovered new exit (range 10) 986 | -10/Materials | Discovered new exit (range 16) 1243 | -10/Materials | Discovered new exit (range 5) 1249 | -10/Materials | Entered Subcaves 1250 | -10/Subcaves | Approached by a straggling Scientist 1358 | -10/Subcaves | Discovered new exit (range 5) 1439 | -10/Subcaves | Core integrity fell below 50% 1981 | -10/Subcaves | Visited Clippyterm 1989 | -10/Subcaves | Learned Factory stockpile data 2060 | -10/Subcaves | A swath of the cavern ceiling suddenly collapsed 2178 | -10/Subcaves | Shifting Twisted Machinery released Flamer 2179 | -10/Subcaves | Shifting Twisted Machinery released Sub. Monowheel 2962 | -10/Subcaves | Build established: Subdweller-Mutant 3406 | -10/Subcaves | Core integrity fell below 20% 3432 | -10/Subcaves | Lost 3 parts (1n1u1w) 3671 | -10/Subcaves | Found SUBCON Basin 3727 | -10/Subcaves | Build established: Scavenger-Mutant 3956 | -10/Subcaves | Entered Materials 3956 | -8/Materials | Evolved 4 slots: Propulsion x2, Weapon x2 4230 | -8/Materials | Discovered new exit (range 10) 4249 | -8/Materials | Repaired Lgt. Treads 4359 | -8/Materials | Build established: Scavenger-Gunner 4413 | -8/Materials | Discovered new exit (range 5) 4866 | -8/Materials | Identified exit to Storage 5010 | -8/Materials | Entered Storage 5371 | -8/Storage | Used back door to open Recycling access 5371 | -8/Storage | Discovered new exit (range 5) 5376 | -8/Storage | Entered Recycling 5952 | -8/Recycling | Discovered new exit (range 15) 6138 | -8/Recycling | Entered Scraplab 6239 | -8/Recycling | Build established: Commander-Gunner 6377 | -8/Recycling | Found Prototype Device 6385 | -8/Recycling | Identified Scrap Engine 6530 | -8/Recycling | Entered Factory 6530 | -6/Factory | Accompanied by 4 allies 6530 | -6/Factory | Evolved 4 slots: Propulsion x1, Utility x3 7367 | -6/Factory | Fabricated Imp. Cloaking Device? 7531 | -6/Factory | Build established: Mutant 8587 | -6/Factory | Discovered new exit (range 6) 8593 | -6/Factory | Entered Extension 8852 | -6/Extension | Rescued a captive Derelict 9059 | -6/Extension | Build established: Tank 9569 | -6/Extension | Spotted B-75 Beast 9603 | -6/Extension | Destroyed B-75 Beast 9618 | -6/Extension | Disrupted transfer network 9657 | -6/Extension | Spotted B-75 Beast 9703 | -6/Extension | Destroyed B-75 Beast 9726 | -6/Extension | Lost 5 parts (1n1u3w) 9728 | -6/Extension | Destroyed 8 combat bots 9830 | -6/Extension | Lost 3 parts (1p2n) 9985 | -6/Extension | Rescued a captive Derelict 10072 | -6/Extension | Rescued a captive Derelict 10075 | -6/Extension | Rescued a captive Derelict 10129 | -6/Extension | Rescued a captive Derelict 10209 | -6/Extension | Rescued a captive Derelict 10451 | -6/Extension | Build established: Construct 10515 | -6/Extension | Rescued a captive Derelict 10516 | -6/Extension | Rescued a captive Derelict 10614 | -6/Extension | Rescued a captive Derelict 10721 | -6/Extension | Lost 6 allies 10862 | -6/Extension | Core integrity fell below 50% 10942 | -6/Extension | Rescued A7 10963 | -6/Extension | Rescued a captive Derelict 10964 | -6/Extension | Rescued a captive Derelict 11002 | -6/Extension | Discovered new exit (range 10) 11005 | -6/Extension | Discovered new exit (range 6) 11089 | -6/Extension | Entered Cetus 11089 | -6/Cetus | Accompanied by 3 allies (A7) 11094 | -6/Cetus | Acquired a Cetus Manufacturing Module code from A7 11120 | -6/Cetus | Spotted Cetus Guard 11120 | -6/Cetus | Spotted Cetus Guard 11122 | -6/Cetus | Spotted Cetus Guard 11122 | -6/Cetus | Spotted Cetus Guard 11129 | -6/Cetus | Allies destroyed Cetus Guard 11134 | -6/Cetus | Allies destroyed Cetus Guard 11139 | -6/Cetus | Allies destroyed Cetus Guard 11148 | -6/Cetus | Allies destroyed Cetus Guard 11148 | -6/Cetus | Core integrity fell below 20% 11228 | -6/Cetus | Started Cetus Manufacturing Module 11243 | -6/Cetus | Escorted A7 to Cetus Mainframe 11253 | -6/Cetus | Manufactured an Enhanced Grunt 11278 | -6/Cetus | Manufactured an Enhanced Grunt 11303 | -6/Cetus | Manufactured an Enhanced Grunt 11328 | -6/Cetus | Manufactured an Enhanced Grunt 11353 | -6/Cetus | Manufactured an Enhanced Grunt 11511 | -6/Cetus | Discovered new exit (range 15) 11544 | -6/Cetus | Spotted Cetus Guard 11544 | -6/Cetus | Spotted Cetus Guard 11553 | -6/Cetus | Spotted Cetus Guard 11555 | -6/Cetus | Spotted Cetus Guard 11560 | -6/Cetus | Allies destroyed Cetus Guard 11564 | -6/Cetus | Allies destroyed Cetus Guard 11568 | -6/Cetus | Allies destroyed Cetus Guard 11573 | -6/Cetus | Allies destroyed Cetus Guard 11580 | -6/Cetus | Found Prototype Device 11580 | -6/Cetus | Identified Exp. Thermal Shield 11608 | -6/Cetus | Discovered new exit (range 15) 11616 | -6/Cetus | Met Revision 17 11653 | -6/Cetus | Entered Factory 11653 | -5/Factory | Accompanied by 5 allies (A7) 11653 | -5/Factory | Evolved 2 slots: Power x1, Utility x1 11658 | -5/Factory | Received a hacking code to weaken MAIN.C 11759 | -5/Factory | Discovered new exit (range 7) 11871 | -5/Factory | Discovered new exit (range 7) 11872 | -5/Factory | Identified exit to Upper Caves 13153 | -5/Factory | First assault squad dispatched 13241 | -5/Factory | Cargo convoy interrupted 13261 | -5/Factory | Garrison activated, responded to threat 13473 | -5/Factory | Entered Upper Caves 13474 | -5/Upper Caves | Encountered a Warlord checkpoint 13783 | -5/Upper Caves | Core integrity fell below 50% 14049 | -5/Upper Caves | Discovered new exit (range 8) 14061 | -5/Upper Caves | Entered another Upper Caves area 14092 | -5/Upper Caves | Encountered a Warlord checkpoint 14158 | -5/Upper Caves | Learned 8 Factory zone layouts 14182 | -5/Upper Caves | Attracted the attention of an 0b10 checkpoint 14259 | -5/Upper Caves | Identified exit to Warlord 14329 | -5/Upper Caves | Spotted B-75 Beast 14345 | -5/Upper Caves | Entered Warlord 14458 | -5/Warlord | Received a Watcher feed algorithm from an ecstatic Tinkerer 14750 | -5/Warlord | Visited the Vortex Lab 14765 | -5/Warlord | Warlord's base attacked by MAIN.C 14968 | -5/Warlord | Met Warlord 15115 | -5/Warlord | Warlord forces counterattacked 15130 | -5/Warlord | Spotted Executioner 15167 | -5/Warlord | Destroyed 9 combat bots 15201 | -5/Warlord | Spotted Executioner 15240 | -5/Warlord | Lost 9 allies 15249 | -5/Warlord | Discovered new exit (range 12) 15274 | -5/Warlord | Entered Proximity Caves 15274 | -4/Proximity Caves | Accompanied by 4 allies 15283 | -4/Proximity Caves | Build established: Commander-Construct 15835 | -4/Proximity Caves | Spotted B-86 Titan 15884 | -4/Proximity Caves | Discovered new exit (range 6) 15957 | -4/Proximity Caves | Entered Factory 15957 | -4/Factory | Accompanied by 4 allies 15957 | -4/Factory | Evolved 2 slots: Propulsion x1, Utility x1 15958 | -4/Factory | Identified exit to Upper Caves 15958 | -4/Factory | Identified exit to Research 16073 | -4/Factory | Discovered exit to Research (range 3) 16146 | -4/Factory | Garrison activated, responded to threat 16490 | -4/Factory | Lost 3 allies 16606 | -4/Factory | Discovered exit to Research (range 7) 16622 | -4/Factory | Build established: Construct 16767 | -4/Factory | Identified exit to Armory 16843 | -4/Factory | Entered Upper Caves 16961 | -4/Upper Caves | Learned Research stockpile data 16996 | -4/Upper Caves | Identified exit to Upper Caves 17039 | -4/Upper Caves | Spotted B-86 Titan 17055 | -4/Upper Caves | Destroyed B-86 Titan 17262 | -4/Upper Caves | Entered another Upper Caves area 17353 | -4/Upper Caves | Spotted B-86 Titan 17391 | -4/Upper Caves | Attracted the attention of an 0b10 checkpoint 17447 | -4/Upper Caves | Destroyed B-86 Titan 17528 | -4/Upper Caves | Learned location of Quarantine (-2) 17635 | -4/Upper Caves | Learned Research garrison access intel 17687 | -4/Upper Caves | Discovered new exit (range 3) 17699 | -4/Upper Caves | Attacked by a delusional Derelict stockpiling parts 17704 | -4/Upper Caves | Entered Zhirov 17704 | -4/Zhirov | Discovered new exit (range 3) 17717 | -4/Zhirov | Met Zhirov 17733 | -4/Zhirov | Learned location of Testing (-3) 17733 | -4/Zhirov | Learned location of Command (-1) 17737 | -4/Zhirov | Zhirov requested help retrieving the SGEMP Prototype 17748 | -4/Zhirov | Found Alien Artifact 17748 | -4/Zhirov | Identified Integrated Dissipator 17748 | -4/Zhirov | Installed Integrated Dissipator, increased core heat dissipation (+20) 17758 | -4/Zhirov | Found Alien Artifact 17841 | -4/Zhirov | Entered Proximity Caves 17899 | -3/Proximity Caves | Attracted the attention of an 0b10 checkpoint 18066 | -3/Proximity Caves | Spotted B-86 Titan 18081 | -3/Proximity Caves | Destroyed B-86 Titan 18327 | -3/Proximity Caves | Attracted the attention of an 0b10 outpost 18426 | -3/Proximity Caves | Destroyed 8 combat bots 18875 | -3/Proximity Caves | Discovered exit to Research (range 8) 18918 | -3/Proximity Caves | Entered Research 18918 | -3/Research | Accompanied by 2 allies 18918 | -3/Research | Evolved 2 slots: Utility x2 18920 | -3/Research | Loaded intel: 4 garrison access locations 19118 | -3/Research | Revision forces began assault on 0b10 19119 | -3/Research | Local machine network offline 19380 | -3/Research | Found Heavy Servo Lattice 19458 | -3/Research | Discovered new exit (range 5) 19463 | -3/Research | Met up with Revision 17++ 19618 | -3/Research | Research terminal network offline 19824 | -3/Research | Entered another Research area 19824 | -2/Research | Warlord forces began assault on 0b10 19824 | -2/Research | Evolved 2 slots: Power x1, Utility x1 19934 | -2/Research | Research machine network offline 20120 | -2/Research | Met up with Warlord 20191 | -2/Research | Borebot progress halted 20289 | -2/Research | Spotted Striker 20292 | -2/Research | Destroyed Striker 20314 | -2/Research | Spotted Striker 20315 | -2/Research | Spotted Striker 20320 | -2/Research | Destroyed Striker 20327 | -2/Research | Destroyed Striker 20373 | -2/Research | Spotted B-90 Cyclops 20384 | -2/Research | Destroyed B-90 Cyclops 20416 | -2/Research | Destroyed KC-P3W(K) 20482 | -2/Research | Borebot progress halted 20567 | -2/Research | Spotted Executioner 20568 | -2/Research | Spotted Striker 20576 | -2/Research | Spotted Striker 20626 | -2/Research | Met DD-05H 20654 | -2/Research | Spotted Striker 20779 | -2/Research | Found Prototype Processor 20779 | -2/Research | Identified Exp. Targeting Computer 20829 | -2/Research | Found Prototype Processor 20829 | -2/Research | Identified Exp. Signal Interpreter 20873 | -2/Research | Discovered new exit (range 15) 20885 | -2/Research | Identified exit to Access 20906 | -2/Research | Spotted B-90 Cyclops 21004 | -2/Research | Spotted Striker 21007 | -2/Research | Spotted Striker 21007 | -2/Research | Spotted Striker 21024 | -2/Research | Destroyed Striker 21026 | -2/Research | Destroyed Striker 21052 | -2/Research | Lost 3 allies 21059 | -2/Research | Spotted Executioner 21093 | -2/Research | Discovered exit to Access (range 10) 21139 | -2/Research | Discovered new exit (range 9) 21145 | -2/Research | Identified exit to Quarantine 21145 | -2/Research | Entered Quarantine 21173 | -2/Quarantine | Found Alien Artifact 21454 | -2/Quarantine | Found Alien Artifact 21466 | -2/Quarantine | Spotted Alpha 7 21500 | -2/Quarantine | Destroyed Alpha 7 21593 | -2/Quarantine | Found Alien Artifact 21707 | -2/Quarantine | Cryocooling Duct disabled 21722 | -2/Quarantine | Ambient heat levels rising (+20) 21722 | -2/Quarantine | Non-combat units ordered to evacuate 21775 | -2/Quarantine | Found Alien Artifact 21775 | -2/Quarantine | Identified Phase Redirector 21819 | -2/Quarantine | Local machine network offline 21857 | -2/Quarantine | Build established: Scavenger-Construct 21869 | -2/Quarantine | Discovered exit to Access (range 12) 21992 | -2/Quarantine | Spotted Fortress 22039 | -2/Quarantine | Discovered new exit (range 5) 22039 | -2/Quarantine | Discovered new exit (range 6) 22041 | -2/Quarantine | Identified exit to Section 7 22043 | -2/Quarantine | Identified exit to Protoforge 22044 | -2/Quarantine | Entered Protoforge 22428 | -2/Protoforge | Discovered exit to Access (range 15) 22432 | -2/Protoforge | Superfortress began startup sequence 22732 | -2/Protoforge | Spotted B-90 Cyclops 22932 | -2/Protoforge | Build established: Construct 22934 | -2/Protoforge | Found Prototype Slashing Weapon 22934 | -2/Protoforge | Identified Exp. Terror Saw 22948 | -2/Protoforge | Found Prototype Protection 22948 | -2/Protoforge | Identified Cep. Core Shell 22952 | -2/Protoforge | Found Cep. Core Shell 22958 | -2/Protoforge | Found Prototype Device 22958 | -2/Protoforge | Identified Exp. Trap Extractor 23166 | -2/Protoforge | System corruption reached 10% 23228 | -2/Protoforge | Crushed by falling debris 23260 | -2/Protoforge | Spotted Hotshot 23260 | -2/Protoforge | Spotted Hotshot 23260 | -2/Protoforge | Spotted Hotshot 23260 | -2/Protoforge | Spotted Hotshot 23277 | -2/Protoforge | Entered Access 23277 | -1/Access | Evolved 2 slots: Utility x2 23711 | -1/Access | Spotted B-99 Colossus 24020 | -1/Access | Spotted B-99 Colossus 24102 | -1/Access | Build established: Hacker-Construct 24277 | -1/Access | First assault squad dispatched 24322 | -1/Access | Found Prototype Device 24322 | -1/Access | Identified Adv. Kinecellerator 24360 | -1/Access | Found Quantum Capacitor 24429 | -1/Access | Identified exit to Command 24485 | -1/Access | Entered Command 24526 | -1/Command | Found Quantum Capacitor 24985 | -1/Command | First assault squad dispatched 25077 | -1/Command | Spotted B-99 Colossus 25258 | -1/Command | System corruption reached 10% 25307 | -1/Command | Destroyed 8 combat bots 25485 | -1/Command | Repaired Hrd. Heavy Armor Plating 25511 | -1/Command | Disengaged cave seal 25511 | -1/Command | Derelicts emerged from the dark tunnel 25511 | -1/Command | Welcomed Warlord to Command 25711 | -1/Command | P-80 Master assimilated allied TM-GR7(g) 25712 | -1/Command | P-80 Master assimilated allied 4C-WT5(g) 25722 | -1/Command | Spotted M Guard 25723 | -1/Command | Spotted M Guard 25724 | -1/Command | Spotted Combat Programmer 25724 | -1/Command | Spotted Combat Programmer 25734 | -1/Command | Warlord commented on Warlord statues 25741 | -1/Command | Combat Programmer assimilated allied 9U-E23(l) 25746 | -1/Command | High security lockdown imminent 25780 | -1/Command | Lost 5 allies 25804 | -1/Command | All MAIN.C guards destroyed 25811 | -1/Command | Found Prototype Device 25811 | -1/Command | Identified Thermal Barrier 25816 | -1/Command | Found Prototype Device 25816 | -1/Command | Identified AEGIS Remote Shield 25826 | -1/Command | High security lockdown engaged 25835 | -1/Command | Lost 8 parts (2p2n4u) 25879 | -1/Command | Identified Terrabomb 25879 | -1/Command | Used Terrabomb 25889 | -1/Command | Met MAIN.C 25893 | -1/Command | 0b10 Conduit disabled 25895 | -1/Command | Hacked MAIN.C using A7's code 25917 | -1/Command | Crushed by falling debris 25922 | -1/Command | Spotted Executioner 25922 | -1/Command | Spotted Executioner 25922 | -1/Command | Spotted Striker 25978 | -1/Command | Lost 5 parts (1p1n2u1w) 26003 | -1/Command | Spotted Alpha 7 26003 | -1/Command | Spotted Striker 26003 | -1/Command | Spotted Executioner 26003 | -1/Command | Spotted Executioner 26003 | -1/Command | Spotted Alpha 7 26003 | -1/Command | Spotted Striker 26003 | -1/Command | Spotted Executioner 26003 | -1/Command | Spotted Executioner 26004 | -1/Command | Spotted B-99 Colossus 26004 | -1/Command | Spotted B-99 Colossus 26014 | -1/Command | Discovered new exit (range 9) 26017 | *** | Escaped! Last Messages --------------- 26013_ Micro-nuke Launcher destroyed. 26013_ Penetrated by Slug. 26013_ Slug penetrates Wall. 26014_ Penetrated by Slug. 26014_ Biometal-Gravjet Exoskeleton destroyed. 26014_ Biometal-Gravjet Exoskeleton core remains intact and functional. 26014_ The Access Shell folds into the floor. 26014_ EXIT=FOUND 26015_ Penetrated by Slug. 26015_ Field strength at 14. 26016_ Lrg. Storage Unit destroyed. 26016_ Knocked back. 26016_ Penetrated by Slug. 26016_ Slug penetrates Wall. 26016_ Knocked back. 26016_ Penetrated by Slug. 26016_ Slug penetrates Wall. 26016_ Penetrated by Slug. 26016_ Slug penetrates Wall. 26016_ Exp. Energy Well destroyed. Map ----- +----------------------------------------------------+ | ????## ## ## ""#???????????????????? | | ?????# ## ## ###???????????????????? | | ?????# ## ## #?????????????????????? | | ?????# ## ## #?????????????????????? | | ??#### ## ## #?????????????????????? | | ??? + ## + #?????????????????????? | | ???? + ##+####"####### #?????????????????????? | | ???? + # #?????# % #?????????????????????? | | ?????+ # ###??##+;;+##????????????????????? | | ?????# # ""#??# ##???????????????????? | | ?????# # ""#?## ^ ;#???????????????????? | | ?????# # ""#?# ^ #???????????????????? | | ?????# # T#?## ^ ##???????????????????? | | ?????# + ! ""#?# %7 ^^ #???????????????????? | | ?????# # ""#?##%%K E##???????????????????? | | ?????# # #?# EE %7 ##??????????????????? | | ?????# # #"#?#%^ E # #??????????????????? | | ?????# # ###?# ###????????????????? | | ????## #########?###;BB #????????????????? | | ????# #????????# % BB BB #????????????????? | | ????# #???????## !!K BB #????????????????? | | ????# #???????#; %!!! #????????????????? | | ????# #???????#; #????????????????? | | ????## #########?# #????????????????? | | ?????# # #?# "% #????????????????? | | ?????# # #?# "@ #????????????????? | | ?????# # #?# ^ #????????????????? | | ?????# + #?# ##????????????????? | | ?????#### #?# #?????????????????? | | ????????# #?# #?????????????????? | | ????????# #?# #?????????????????? | | ????????# #?##############?????????????????? | | ????????# #????????????????????????????????? | | ????????# #????????????????????????????????? | | ????????# #????????????????????????????????? | | ????????#########????????????????????????????????? | | ?????????????????????????????????????????????????? | | | | | | | | | | | | | | | | | | | | | | | | | | | +----------------------------------------------------+ Best States ------------- Heat Dissipation 138 Energy Generation 87 Energy Capacity 1514 Matter Stores 300 Matter Capacity 300 Sight Range 22 Robot Scan Range 16 Terrain Scan Range 24 Terrain Scan Density 10 Jamming Range 16 Cloak Strength 3 Armor Coverage 900 Resistance: TH 50 Resistance: EX 50 Core Shielding 90 Propulsion Shielding 33 Phase Shifting 5 Evasion (%) 68 Targeting Accuracy 12 Armor Integrity Analysis 30 Recoil Reduction 5 Matter Filtering 30 Particle Charging 25 Kinecelleration 50 Salvage Targeting 3 Offensive Hacking 14 Defensive Hacking 14 Item Schematics ----------------- Hcp. Storage Unit | -10/Materials | Hacked Assault Drone Bay | -4/Zhirov | Free Exp. Heat Sink | -4/Zhirov | Free Exp. Optical Array | -4/Zhirov | Free Imp. Arc Thrower | -4/Zhirov | Free Robot Schematics ------------------ None Fabricated ------------ Imp. Cloaking Device | x2 | -6/Factory | Preloaded Repaired ---------- Spread Laser | 25% | -10/Materials Lgt. Treads | 17% | -8/Materials Hrd. Heavy Armor Plating | 10% | -1/Command Alien Tech Used ----------------- Integrated Dissipator Phase Redirector Terrabomb Achievements -------------- Poison In The Code Challenges ------------ None Game ------ Seed LayeredRagnarokChip Manual? 0 Play Time 04:45:38 Cumulative 515.7 hours Start 2025.07.08 @ 18:15:31 End 2025.07.12 @ 02:00:26 Sessions 11 Manual Loads 0 Difficulty Rogue Special Mode None Game No. 354 Rogue 354 Adventurer 0 Explorer 0 Win Type 0 Total 48 Types 41/0/5/2/0/0/0/0/0/0 Lore% 84 Gallery% 80 Achievement% 73 Wizard Run 0 Options --------- Layout 0 ASCII 0 Keyboard 1 Movement Numpad Keybinds 0 Fullscreen 2 Font 24/Tamsyn Map View 76x50 Zoom Use 0% Tactical HUD 1 Map Filters NONE Filters NONE Steam 1 RUN: 4ac3d109-3662-4a59-92b6-2a8be2a4f0b9